bitfinex/quotes_BTCUSD_20250127
["timestamp","ask_amount","ask_price","bid_price","bid_amount"]
[1737966667798,0.81601249,99043.0,99042.0,0.00014852]
[1737966668372,0.66456349,99043.0,99042.0,0.00014852]
[1737966668547,0.66456349,99043.0,99042.0,0.15159852]
[1737966668993,0.81601249,99043.0,99042.0,0.00014852]
[1737966669670,0.89441249,99043.0,99042.0,0.00014852]
[1737966672042,0.151473,99028.0,99016.0,0.00102363]
[1737966672258,0.75319984,99043.0,99016.0,0.00102363]
[1737966672259,0.09734729,99027.0,99016.0,0.00102363]
[1737966672470,0.201943,99038.0,99016.0,0.00102363]
[1737966672748,0.09734729,99037.0,99020.0,0.14922551]
[1737966673117,0.09734729,99037.0,99021.0,0.0010098]
[1737966673329,0.001,99028.0,99025.0,0.151475]
[1737966673597,1.46946279,99027.0,99020.0,0.0099772]
[1737966673777,0.24883029,99021.0,99020.0,0.0099772]
[1737966674004,0.151489,99017.0,99016.0,0.00102363]
[1737966674208,0.39883629,99017.0,99016.0,0.00102363]
[1737966675498,0.44793699,99017.0,99016.0,0.00102363]
[1737966676206,0.44893699,99017.0,99016.0,0.00102363]
[1737966676349,0.29893699,99017.0,99016.0,0.00102363]
[1737966677460,0.30907952,99017.0,99016.0,0.00102363]
[1737966679282,0.29893699,99017.0,99016.0,0.00102363]
[1737966680017,0.29793699,99017.0,99016.0,0.00102363]
[1737966680432,0.26772117,99017.0,99016.0,0.00102363]
[1737966680895,0.01888488,99017.0,99016.0,0.00102363]
[1737966681151,0.01888488,99017.0,99016.0,0.15251363]
[1737966681618,0.01888488,99017.0,99016.0,0.00102363]
[1737966681852,0.201981,99019.0,99016.0,0.00102363]
[1737966682077,0.002,99017.0,99016.0,0.00102363]
[1737966682527,0.005,99017.0,99016.0,0.15251363]
[1737966682732,0.005,99017.0,99016.0,0.00102363]
[1737966682940,0.001,99017.0,99016.0,0.00102363]
[1737966683185,0.002,99017.0,99016.0,0.00102363]
[1737966683543,0.001,99017.0,99016.0,0.15251363]
[1737966684050,0.001,99017.0,99016.0,0.00102363]
[1737966684535,0.01982997,99017.0,99016.0,0.15251363]
[1737966684781,0.01982997,99017.0,99016.0,0.15265543]
[1737966684984,0.02012776,99017.0,99016.0,0.15265543]
[1737966685146,0.01912776,99017.0,99016.0,0.15265543]
[1737966685352,0.00029779,99017.0,99016.0,0.15265543]
[1737966685558,0.00029779,99017.0,99016.0,0.15366532]
[1737966685733,0.00029779,99017.0,99016.0,0.15265543]
[1737966685943,0.00029779,99017.0,99016.0,0.15366521]
[1737966686140,0.00029779,99017.0,99016.0,0.22916521]
[1737966686320,0.00029779,99017.0,99016.0,0.22815543]
[1737966686629,0.00029779,99017.0,99016.0,0.23950424]
[1737966686825,0.00029779,99017.0,99016.0,0.23850424]
[1737966687037,0.00029779,99017.0,99016.0,0.28710424]
[1737966687237,0.00029779,99017.0,99016.0,0.55945153]
[1737966687647,0.01882472,99042.0,99016.0,0.55945153]
[1737966687648,0.01882472,99042.0,99017.0,0.173]
[1737966687847,0.01882472,99042.0,99020.0,0.14922551]
[1737966688050,0.01882472,99042.0,99019.0,0.023]
[1737966688051,0.01882472,99042.0,99041.0,0.301452]
[1737966688410,0.01882472,99042.0,99041.0,0.151452]
[1737966688645,0.00014813,99043.0,99042.0,0.15145]
[1737966688849,0.00014813,99043.0,99042.0,0.22695]
[1737966689404,0.00014813,99043.0,99042.0,0.37695]
[1737966689665,0.00014813,99043.0,99042.0,0.44855]
[1737966690176,0.00014813,99043.0,99042.0,0.45850161]
[1737966690497,0.00014813,99043.0,99042.0,0.5668489]
[1737966690704,0.01881728,99062.0,99061.0,0.393021]
[1737966690922,0.03011817,99083.0,99079.0,0.301394]
[1737966691132,0.03011817,99083.0,99079.0,0.42174129]
[1737966691333,0.03011817,99083.0,99079.0,0.399894]
[1737966691569,0.00044599,99080.0,99079.0,0.151394]
[1737966692018,0.00044599,99080.0,99070.0,0.0099107]
[1737966692217,0.151398,99077.0,99070.0,0.0099107]
[1737966692423,0.09734729,99079.0,99073.0,0.151402]
[1737966692634,0.09734729,99079.0,99070.0,0.151407]
[1737966692846,0.09734729,99079.0,99061.0,0.15142]
[1737966692847,0.5171155,99078.0,99061.0,0.15142]
[1737966693068,0.151412,99067.0,99059.0,0.151424]
[1737966693277,0.151412,99067.0,99056.0,0.201904]
[1737966693278,0.09734729,99066.0,99045.0,0.01004068]
[1737966693480,0.09734729,99066.0,99065.0,0.151415]
[1737966693765,0.09734729,99066.0,99050.0,0.22418151]
[1737966693766,0.201865,99076.0,99050.0,0.22418151]
[1737966693967,0.151408,99070.0,99050.0,0.22418151]
[1737966694186,0.5171155,99078.0,99067.0,0.151411]
[1737966694389,0.1514,99075.0,99068.0,0.151411]
[1737966694642,0.09734729,99074.0,99062.0,0.151419]
[1737966694844,0.151408,99070.0,99064.0,0.151417]
[1737966695048,0.5171155,99078.0,99065.0,0.0099622]
[1737966695254,0.151407,99071.0,99065.0,0.0099622]
[1737966695385,0.15141,99069.0,99065.0,0.0099622]
[1737966695601,0.151405,99073.0,99065.0,0.1613772]
[1737966695813,0.09734729,99073.0,99062.0,0.201893]
[1737966696026,0.24875029,99073.0,99066.0,0.151413]
[1737966696232,0.24875029,99073.0,99064.0,0.201889]
[1737966696435,0.151411,99068.0,99063.0,0.0098965]
[1737966696670,0.151409,99070.0,99063.0,0.0098965]
[1737966696868,0.201877,99070.0,99063.0,0.0098965]
[1737966697234,0.151406,99072.0,99064.0,0.151416]
[1737966697871,0.09834729,99073.0,99063.0,0.201891]
[1737966698039,0.09834729,99073.0,99072.0,0.151405]
[1737966698284,0.001,99073.0,99072.0,0.151405]
[1737966698489,0.5171155,99079.0,99078.0,0.151395]
[1737966699515,0.00044599,99080.0,99079.0,0.151394]
[1737966699754,0.00044599,99080.0,99079.0,0.27174129]
[1737966699970,0.00044599,99080.0,99079.0,0.42174129]
[1737966700176,0.00044599,99080.0,99079.0,0.49944129]
[1737966700846,0.00044599,99080.0,99079.0,0.379094]
[1737966701055,0.00044599,99080.0,99079.0,0.151394]
[1737966702110,0.00044599,99080.0,99079.0,0.155394]
[1737966702937,0.00044599,99080.0,99079.0,0.156394]
[1737966705837,0.00044599,99080.0,99079.0,0.005]
[1737966706040,0.09779328,99080.0,99079.0,0.005]
[1737966706244,0.24918528,99080.0,99079.0,0.005]
[1737966706886,0.09779328,99080.0,99079.0,0.004]
[1737966707256,0.00044599,99080.0,99079.0,0.151394]
[1737966707460,0.00044599,99080.0,99079.0,0.003]
[1737966707667,0.24918528,99080.0,99079.0,0.003]
[1737966708227,0.09779328,99080.0,99079.0,0.004]
[1737966708436,0.00044599,99080.0,99079.0,0.004]
[1737966708611,0.00044599,99080.0,99079.0,0.152394]
[1737966708815,0.00044599,99080.0,99079.0,0.151394]
[1737966709104,0.00244599,99080.0,99079.0,0.151394]
[1737966709682,0.00044599,99080.0,99079.0,0.153394]
[1737966709866,0.00044599,99080.0,99079.0,0.151394]
[1737966710240,0.00044599,99080.0,99079.0,0.153394]
[1737966710446,0.00044599,99080.0,99079.0,0.151394]
[1737966710625,0.00044599,99080.0,99070.0,0.43597741]
[1737966710626,0.151394,99079.0,99070.0,0.2117959]
[1737966710834,0.09734729,99079.0,99070.0,0.2117959]
[1737966711034,0.09734729,99079.0,99073.0,0.151403]
[1737966711240,0.00044599,99080.0,99070.0,0.0099199]
[1737966711692,0.00044599,99080.0,99070.0,0.01994127]
[1737966711863,0.01875392,99079.0,99071.0,0.201875]
[1737966712061,0.01875392,99079.0,99072.0,0.201873]
[1737966712270,0.01875392,99079.0,99078.0,0.151395]
[1737966712855,0.00044599,99080.0,99079.0,0.151394]
[1737966714987,0.00044599,99080.0,99079.0,0.324394]
[1737966715166,0.5171155,99084.0,99083.0,0.151388]
[1737966715319,0.3208,99109.0,99104.0,0.151355]
[1737966715664,0.09734729,99108.0,99102.0,0.151358]
[1737966715871,0.151354,99105.0,99098.0,0.151364]
[1737966716030,0.14631273,99108.0,99099.0,0.0098788]
[1737966716226,0.14631273,99108.0,99101.0,0.15136]
[1737966716431,0.14631273,99108.0,99099.0,0.0098788]
[1737966716795,0.14731273,99108.0,99099.0,0.0098788]
[1737966717124,0.14731273,99108.0,99103.0,0.151356]
[1737966717338,0.04896544,99107.0,99104.0,0.151355]
[1737966717540,0.14631273,99107.0,99098.0,0.2117949]
[1737966717994,0.14631273,99107.0,99105.0,0.151353]
[1737966718196,0.14631273,99107.0,99098.0,0.0099759]
[1737966718348,0.04896544,99106.0,99104.0,0.151355]
[1737966718546,0.04896544,99106.0,99105.0,0.151354]
[1737966718740,0.04896544,99106.0,99096.0,0.0098625]
[1737966718998,0.04896544,99106.0,99104.0,0.151355]
[1737966719356,0.04896544,99105.0,99104.0,0.151356]
[1737966720381,0.001,99106.0,99105.0,0.151354]
[1737966720586,0.001,99106.0,99105.0,0.47181018]
[1737966720587,0.5181155,99106.0,99105.0,0.47181018]
[1737966720758,0.001,99106.0,99105.0,0.47080129]
[1737966720959,0.001,99106.0,99105.0,0.50213227]
[1737966721365,0.00029758,99107.0,99105.0,0.03133098]
[1737966721505,0.00029758,99107.0,99106.0,0.151353]
[1737966721722,0.00029758,99107.0,99106.0,0.33268398]
[1737966722129,0.00029758,99107.0,99106.0,0.301353]
[1737966722357,0.51741308,99107.0,99106.0,0.151353]
[1737966722974,0.51741308,99107.0,99106.0,0.155353]
[1737966723174,0.51741308,99107.0,99106.0,0.151353]
[1737966723402,0.51741308,99107.0,99106.0,0.152353]
[1737966724536,0.53625419,99107.0,99106.0,0.157353]
[1737966724736,0.53625419,99107.0,99106.0,0.152353]
[1737966724951,0.53625419,99107.0,99106.0,0.151353]
[1737966725154,0.53625419,99107.0,99106.0,0.153353]
[1737966725708,0.56640168,99107.0,99106.0,0.152353]
[1737966726631,0.56640168,99107.0,99106.0,0.001]
[1737966726826,0.66374897,99107.0,99106.0,0.001]
[1737966727370,0.81509997,99107.0,99106.0,0.001]
[1737966727605,0.81509997,99107.0,99096.0,0.0098625]
[1737966727606,0.66374897,99107.0,99096.0,0.0098625]
[1737966727823,0.81510097,99107.0,99099.0,0.151363]
[1737966728061,0.66374897,99107.0,99106.0,0.001]
[1737966728260,0.56640168,99107.0,99106.0,0.151353]
[1737966728494,0.04928618,99107.0,99106.0,0.49850029]
[1737966728727,0.04928618,99107.0,99106.0,0.58046886]
[1737966728944,0.00049458,99113.0,99106.0,0.58046886]
[1737966728945,0.00049458,99113.0,99112.0,0.161343]
[1737966729155,0.00049458,99113.0,99112.0,0.31405059]
[1737966729378,0.00049458,99113.0,99112.0,0.38884185]
[1737966729780,0.00049458,99113.0,99112.0,0.37884185]
[1737966731004,0.00049458,99113.0,99112.0,0.25849456]
[1737966731217,0.00049458,99113.0,99112.0,0.18269456]
[1737966731416,0.00049458,99113.0,99112.0,0.19569456]
[1737966731598,0.00049458,99113.0,99112.0,0.18669456]
[1737966731845,0.00049458,99113.0,99112.0,0.19169456]
[1737966731995,0.51761008,99113.0,99112.0,0.19169456]
[1737966732210,0.51761008,99113.0,99112.0,0.18469456]
[1737966732407,0.51761008,99113.0,99112.0,0.19169456]
[1737966737342,0.51721008,99113.0,99112.0,0.19169456]
[1737966738035,0.51721008,99113.0,99112.0,0.04035156]
[1737966738243,0.66855208,99113.0,99112.0,0.04035156]
[1737966738446,0.76589937,99113.0,99112.0,0.04035156]
[1737966738834,0.76589937,99113.0,99112.0,0.009]
[1737966739083,0.76589937,99113.0,99112.0,0.007]
[1737966739284,0.151353,99106.0,99097.0,0.0099176]
[1737966739490,0.32520029,99106.0,99086.0,0.151383]
[1737966739742,0.32520029,99106.0,99076.0,0.01488]
[1737966739991,0.32520029,99106.0,99083.0,0.0098969]
[1737966740221,0.32520029,99106.0,99078.0,0.201859]
[1737966740636,0.35531391,99106.0,99078.0,0.2116849]
[1737966740875,0.35531391,99106.0,99078.0,0.0098259]
[1737966741091,0.35531391,99106.0,99078.0,0.1612199]
[1737966741294,0.35531391,99106.0,99078.0,0.201861]
[1737966741495,0.36552215,99106.0,99078.0,0.2118331]
[1737966741872,0.38934769,99106.0,99079.0,0.151393]
[1737966742077,0.38934769,99106.0,99080.0,0.151392]
[1737966742310,0.38934769,99106.0,99078.0,0.2118331]
[1737966742311,0.39134769,99106.0,99078.0,0.2118331]
[1737966742519,2.23426319,99106.0,99078.0,0.0099721]
[1737966742732,2.30586319,99106.0,99105.0,6e-07]
[1737966742941,0.151411,99068.0,99067.0,0.08973717]
[1737966743151,0.6685265,99068.0,99067.0,0.08973717]
[1737966743368,0.6685265,99068.0,99067.0,0.09972237]
[1737966743572,0.56605466,99068.0,99067.0,0.08973717]
[1737966743780,0.81481295,99068.0,99067.0,0.08973717]
[1737966744196,0.81481295,99068.0,99067.0,0.09013716]
[1737966744617,1.13561295,99068.0,99067.0,0.00039999]
[1737966744828,1.28561295,99068.0,99067.0,0.00039999]
[1737966745031,0.151433,99054.0,99046.0,0.151443]
[1737966745293,0.15,99067.0,99046.0,0.151443]
[1737966745294,0.09734729,99053.0,99048.0,0.15144]
[1737966745498,0.09734729,99053.0,99046.0,0.00014841]
[1737966745712,0.5171155,99065.0,99046.0,0.00014841]
[1737966745918,0.15142,99062.0,99054.0,0.151431]
[1737966746118,0.24876929,99061.0,99054.0,0.15034252]
[1737966746504,0.11611859,99061.0,99049.0,0.20192]
[1737966746659,0.151425,99059.0,99053.0,0.151433]
[1737966746852,0.09734729,99058.0,99053.0,0.151433]
[1737966747322,0.09734729,99058.0,99052.0,0.151435]
[1737966747479,0.09734729,99058.0,99053.0,0.151433]
[1737966747687,0.09734729,99058.0,99055.0,0.15143]
[1737966747914,0.09734729,99058.0,99053.0,0.003]
[1737966748071,0.24877329,99058.0,99053.0,0.003]
[1737966748297,0.24877329,99058.0,99053.0,0.001]
[1737966748497,0.151428,99057.0,99053.0,0.001]
[1737966748707,0.09734729,99058.0,99053.0,0.001]
[1737966749110,0.24877429,99058.0,99053.0,0.001]
[1737966749334,0.09734729,99058.0,99053.0,0.155433]
[1737966749537,0.09734729,99058.0,99054.0,0.151431]
[1737966749833,0.09734729,99058.0,99053.0,0.0045]
[1737966750172,0.09734729,99058.0,99053.0,0.154932]
[1737966750518,0.09734729,99058.0,99053.0,0.152932]
[1737966750764,0.09734729,99058.0,99054.0,0.20191]
[1737966750972,0.09734729,99058.0,99054.0,0.355341]
[1737966751142,0.09734729,99058.0,99055.0,0.15143]
[1737966751378,0.09734729,99058.0,99053.0,0.0015]
[1737966751576,0.09734729,99058.0,99053.0,0.0045]
[1737966751781,0.09734729,99058.0,99053.0,0.0005]
[1737966752265,0.09734729,99058.0,99054.0,0.003]
[1737966752825,0.09734729,99058.0,99056.0,0.151429]
[1737966753158,0.09734729,99058.0,99055.0,0.151431]
[1737966753370,0.09734729,99058.0,99057.0,0.151427]
[1737966753983,0.09734729,99058.0,99055.0,0.201906]
[1737966753984,0.09734729,99058.0,99055.0,0.15143]
[1737966754394,0.09734729,99058.0,99056.0,0.151429]
[1737966754810,0.09734729,99058.0,99057.0,0.151427]
[1737966755216,0.09734729,99058.0,99053.0,0.0005]
[1737966755424,0.09734729,99058.0,99057.0,0.001]
[1737966755634,0.09734729,99058.0,99053.0,0.0005]
[1737966755845,0.09734729,99058.0,99054.0,0.151432]
[1737966756056,0.09734729,99058.0,99056.0,0.002]
[1737966756293,0.09734729,99058.0,99056.0,0.151428]
[1737966756624,0.09734729,99058.0,99053.0,0.0005]
[1737966756829,0.09734729,99058.0,99054.0,0.151432]
[1737966757153,0.24877429,99058.0,99053.0,0.0005]
[1737966757358,0.09734729,99058.0,99054.0,0.151431]
[1737966757774,0.09734729,99058.0,99053.0,0.151933]
[1737966757972,0.61446279,99058.0,99053.0,0.0005]
[1737966758197,0.197232,99054.0,99053.0,0.0005]
[1737966758373,0.29457929,99054.0,99053.0,0.0005]
[1737966759171,0.46440858,99054.0,99053.0,0.0005]
[1737966759354,0.47437848,99054.0,99053.0,0.0005]
[1737966759551,0.55047848,99054.0,99053.0,0.0005]
[1737966759752,0.64782577,99054.0,99053.0,0.0005]
[1737966760176,2.29192324,99054.0,99053.0,0.0045]
[1737966760498,2.29192324,99054.0,99053.0,1e-08]
[1737966760944,2.29292324,99054.0,99053.0,1e-08]
[1737966761507,0.377543,99047.0,99046.0,0.0001417]
[1737966761718,2.16780579,99047.0,99046.0,0.0001417]
[1737966762768,2.21633505,99047.0,99046.0,0.0001417]
[1737966763177,2.21733505,99047.0,99046.0,0.0001417]
[1737966763796,2.21633505,99047.0,99046.0,0.0001417]
[1737966764221,2.21733505,99047.0,99046.0,0.0001417]
[1737966764597,2.29703505,99047.0,99046.0,0.0001417]
[1737966764807,2.29603505,99047.0,99046.0,0.0001417]
[1737966765053,2.26303505,99047.0,99046.0,0.0001417]
[1737966765283,2.24937233,99047.0,99046.0,0.0001417]
[1737966765699,2.25337233,99047.0,99046.0,0.0001417]
[1737966766101,2.25437233,99047.0,99046.0,0.0001417]
[1737966766310,2.25037233,99047.0,99046.0,0.0001417]
[1737966766537,2.24937233,99047.0,99046.0,0.0001417]
[1737966766757,2.25237233,99047.0,99046.0,0.0001417]
[1737966766894,2.25337233,99047.0,99046.0,0.0001417]
[1737966767329,2.25237233,99047.0,99046.0,0.0001417]
[1737966767757,2.25437233,99047.0,99046.0,0.0001417]
[1737966768019,2.25137233,99047.0,99046.0,0.0001417]
[1737966768147,1.97857233,99047.0,99046.0,0.0001417]
[1737966768789,1.98157233,99047.0,99046.0,0.0001417]
[1737966768994,1.97657233,99047.0,99046.0,0.0001417]
[1737966769223,1.83879205,99047.0,99015.0,0.0781]
[1737966769387,0.76446279,99046.0,99027.0,0.01001843]
[1737966769593,0.20193,99044.0,99027.0,0.01001843]
[1737966769794,0.151459,99037.0,99028.0,0.353435]
[1737966770002,0.09734729,99036.0,99035.0,0.151461]
[1737966770566,0.09734729,99036.0,99031.0,0.151467]
[1737966770772,0.09734729,99036.0,99027.0,0.01009293]
[1737966770773,0.151463,99034.0,99027.0,0.01009293]
[1737966771005,0.09734729,99033.0,99027.0,0.01009293]
[1737966771401,0.151468,99031.0,99027.0,0.00014813]
[1737966771537,0.151469,99030.0,99027.0,0.00014813]
[1737966771747,0.0186651,99032.0,99027.0,0.00014813]
[1737966772096,0.151467,99031.0,99027.0,0.00014813]
[1737966772227,0.353423,99031.0,99027.0,0.00014813]
[1737966772624,0.002,99030.0,99027.0,0.00014813]
[1737966772847,0.151467,99031.0,99027.0,0.00014813]
[1737966772848,0.151472,99028.0,99027.0,0.00014813]
[1737966773044,0.24881929,99028.0,99027.0,0.00014813]
[1737966773448,0.76593479,99028.0,99027.0,0.00014813]
[1737966774073,0.83583714,99028.0,99027.0,0.00014813]
[1737966774299,0.82553481,99028.0,99027.0,0.00014813]
[1737966774451,0.97553481,99028.0,99027.0,0.00014813]
[1737966774653,2.15133481,99028.0,99027.0,0.00014813]
[1737966774857,2.15333481,99028.0,99027.0,0.00014813]
[1737966775057,2.15133481,99028.0,99027.0,0.00014813]
[1737966775560,2.15533481,99028.0,99027.0,0.00014813]
[1737966776074,2.15533481,99028.0,99010.0,0.002208]
[1737966776075,0.301489,99017.0,99010.0,0.002208]
[1737966776242,0.91595179,99017.0,99010.0,0.002208]
[1737966777074,0.76595179,99017.0,99010.0,0.002208]
[1737966777641,0.81460838,99017.0,99016.0,0.00316543]
[1737966780644,0.66311938,99017.0,99016.0,0.00316543]
[1737966780848,0.66311938,99017.0,99016.0,0.15465543]
[1737966780849,0.04865659,99017.0,99016.0,0.15465543]
[1737966781044,0.04865659,99017.0,99016.0,0.15265543]
[1737966781220,0.04865659,99017.0,99016.0,0.15365543]
[1737966781606,0.04865659,99017.0,99016.0,0.15265543]
[1737966781810,0.04865659,99017.0,99016.0,0.15365543]
[1737966782181,0.151452,99041.0,99034.0,0.151462]
[1737966782410,0.00014827,99040.0,99035.0,0.201948]
[1737966782585,0.00014827,99040.0,99039.0,0.151455]
[1737966782812,0.00014827,99040.0,99039.0,0.18284394]
[1737966783273,0.00014827,99040.0,99039.0,0.03138894]
[1737966783481,0.151467,99031.0,99030.0,0.0098739]
[1737966783677,0.15112532,99031.0,99030.0,0.0098739]
[1737966783857,0.00014827,99040.0,99039.0,0.001]
[1737966784060,0.24895056,99040.0,99039.0,0.001]
[1737966784272,0.09749556,99040.0,99039.0,0.001]
[1737966784441,0.00014827,99040.0,99039.0,0.152455]
[1737966784643,0.04056127,99040.0,99039.0,0.152455]
[1737966784801,0.04056127,99040.0,99039.0,0.001]
[1737966785000,0.04456127,99040.0,99039.0,0.152455]
[1737966785338,0.04456127,99040.0,99039.0,0.151455]
[1737966785747,0.04656127,99040.0,99039.0,0.151455]
[1737966785952,0.04056127,99040.0,99039.0,0.151455]
[1737966786329,0.04156127,99040.0,99039.0,0.151455]
[1737966786556,0.04256127,99040.0,99039.0,0.151455]
[1737966787306,0.04256127,99040.0,99039.0,0.231055]
[1737966787307,0.00214827,99040.0,99039.0,0.231055]
[1737966787494,0.00214827,99040.0,99039.0,0.300755]
[1737966787907,0.00214827,99040.0,99039.0,0.5795077]
[1737966788105,0.00114827,99040.0,99039.0,0.5795077]
[1737966788530,0.00114827,99040.0,99039.0,0.45916041]
[1737966788744,0.00014827,99040.0,99039.0,0.427755]
[1737966788947,0.00114827,99040.0,99039.0,0.45915442]
[1737966789161,0.00214827,99040.0,99039.0,0.46715442]
[1737966789375,0.00114827,99040.0,99039.0,0.47720178]
[1737966789590,0.00014827,99040.0,99039.0,0.46920178]
[1737966789839,0.00014827,99040.0,99039.0,0.47320178]
[1737966790033,0.00014827,99040.0,99039.0,0.59754907]
[1737966790248,0.00014827,99040.0,99039.0,0.60354907]
[1737966790385,0.00014827,99040.0,99039.0,0.59354907]
[1737966791214,0.00014827,99040.0,99039.0,0.58954907]
[1737966791435,0.00014827,99040.0,99039.0,0.58656377]
[1737966791634,0.00114827,99040.0,99039.0,0.59756377]
[1737966792198,0.00114827,99040.0,99039.0,0.59112791]
[1737966792404,0.00014827,99040.0,99039.0,0.58612791]
[1737966792881,0.00114827,99040.0,99039.0,0.59412791]
[1737966793087,0.00114827,99040.0,99039.0,0.47378062]
[1737966793288,0.15260127,99040.0,99039.0,0.011]
[1737966793463,0.24994856,99040.0,99039.0,0.011]
[1737966794219,0.15260127,99040.0,99039.0,0.011]
[1737966794420,0.76606406,99040.0,99039.0,0.003]
[1737966794596,1.08786406,99040.0,99039.0,0.01]
[1737966794932,1.08786406,99040.0,99039.0,0.003]
[1737966795135,0.151481,99022.0,99016.0,0.00116543]
[1737966795388,0.151466,99032.0,99018.0,0.151486]
[1737966795565,0.151469,99030.0,99016.0,0.15265543]
[1737966795776,0.151473,99028.0,99016.0,0.00116543]
[1737966795981,0.89286007,99040.0,99016.0,0.00116543]
[1737966795982,0.89315765,99040.0,99017.0,0.00100988]
[1737966796190,0.89315765,99040.0,99019.0,0.151485]
[1737966796191,0.151466,99032.0,99019.0,0.151485]
[1737966796355,0.09734729,99039.0,99018.0,0.151486]
[1737966796561,0.201944,99037.0,99019.0,0.151485]
[1737966796793,0.151469,99030.0,99017.0,0.151488]
[1737966797150,0.0487963,99039.0,99020.0,0.22447068]
[1737966797351,0.09734729,99038.0,99027.0,0.151473]
[1737966797574,0.15146,99036.0,99021.0,0.0795]
[1737966797795,0.09734729,99038.0,99021.0,0.0795]
[1737966798022,0.09734729,99038.0,99021.0,0.0893861]
[1737966798222,0.01876738,99035.0,99022.0,0.201975]
[1737966798396,0.01876738,99035.0,99023.0,0.201973]
[1737966798724,0.01876738,99035.0,99024.0,0.201971]
[1737966799125,0.01876738,99037.0,99027.0,0.151473]
[1737966799243,0.01876738,99037.0,99027.0,0.152473]
[1737966799456,0.17022538,99037.0,99027.0,0.152473]
[1737966799654,0.09734729,99036.0,99027.0,0.001]
[1737966799895,0.151471,99029.0,99027.0,0.0109268]
[1737966800100,0.01876738,99037.0,99027.0,0.001]
[1737966800101,0.24881929,99028.0,99027.0,0.001]
[1737966800423,0.09734729,99028.0,99027.0,0.001]
[1737966800624,0.151476,99026.0,99016.0,0.15265443]
[1737966800833,0.24882429,99025.0,99016.0,0.00116543]
[1737966801359,0.09734729,99025.0,99016.0,0.00116543]
[1737966802039,0.09734729,99025.0,99021.0,0.151482]
[1737966802386,0.6685795,99034.0,99024.0,0.151477]
[1737966802588,0.00044585,99040.0,99033.0,0.151463]
[1737966802817,0.00044585,99040.0,99027.0,0.201965]
[1737966803015,0.00044585,99040.0,99017.0,0.023]
[1737966803016,0.151456,99039.0,99028.0,0.151472]
[1737966803331,0.00044585,99040.0,99027.0,0.0098822]
[1737966803735,0.00044585,99040.0,99018.0,0.00100967]
[1737966803945,0.00044585,99040.0,99039.0,0.151455]
[1737966804731,0.00144585,99040.0,99039.0,0.151455]
[1737966804972,0.00044585,99040.0,99039.0,0.151455]
[1737966805182,0.00044585,99040.0,99039.0,0.152455]
[1737966805395,0.00044585,99040.0,99039.0,0.16233116]
[1737966805664,0.00044585,99040.0,99039.0,0.26114069]
[1737966805880,0.00044585,99040.0,99039.0,0.26013116]
[1737966806936,0.00044585,99040.0,99039.0,0.26113116]
[1737966810725,0.00044585,99040.0,99039.0,0.01087616]
[1737966810936,0.15189885,99040.0,99039.0,0.001]
[1737966811141,0.24924614,99040.0,99039.0,0.001]
[1737966811767,0.24924614,99040.0,99017.0,0.0001417]
[1737966811768,0.151484,99021.0,99017.0,0.0001417]
[1737966811975,0.201954,99032.0,99017.0,0.0001417]
[1737966812174,0.5171155,99033.0,99018.0,0.0099425]
[1737966812175,0.151478,99024.0,99018.0,0.0099425]
[1737966812373,0.09734729,99023.0,99018.0,0.0099425]
[1737966812811,0.24882829,99023.0,99018.0,0.0099425]
[1737966813018,0.17030984,99022.0,99018.0,0.0099425]
[1737966813196,0.201979,99020.0,99017.0,0.0001417]
[1737966813430,0.151487,99018.0,99017.0,0.0001417]
[1737966813640,0.24883429,99018.0,99017.0,0.0001417]
[1737966813862,0.24883429,99018.0,99017.0,0.0021417]
[1737966814076,0.41766213,99018.0,99017.0,0.0001417]
[1737966814400,0.41766213,99018.0,99017.0,0.0021417]
[1737966814604,0.41766213,99018.0,99017.0,0.0001417]
[1737966815036,0.41966213,99018.0,99017.0,0.0001417]
[1737966815239,0.44774486,99018.0,99017.0,0.0011417]
[1737966816004,0.44774486,99018.0,99017.0,0.0001417]
[1737966817686,0.54271232,99018.0,99017.0,0.0001417]
[1737966818019,0.56995946,99018.0,99017.0,0.0001417]
[1737966818220,0.54695946,99018.0,99017.0,0.0001417]
[1737966819975,0.56995946,99018.0,99017.0,0.0001417]
[1737966820421,0.56995946,99018.0,99016.0,0.00116543]
[1737966820422,0.479789,99017.0,99016.0,1.3e-07]
[1737966820662,0.161498,99011.0,99010.0,1.3e-07]
[1737966820814,0.51084529,99011.0,99010.0,1.3e-07]
[1737966821561,0.54033458,99011.0,99010.0,1.3e-07]
[1737966821992,0.54933458,99011.0,99010.0,1.3e-07]
[1737966822178,0.59606427,99011.0,99010.0,1.3e-07]
[1737966822378,0.62471814,99011.0,99010.0,1.3e-07]
[1737966822588,0.62871814,99011.0,99010.0,1.3e-07]
[1737966823123,0.311505,99006.0,98997.0,7e-05]
[1737966823326,0.43185229,99006.0,98997.0,7e-05]
[1737966823530,0.301518,98998.0,98997.0,7e-05]
[1737966823732,2.09178079,98998.0,98997.0,7e-05]
[1737966824352,2.09178079,98998.0,98997.0,0.0002181]
[1737966824753,2.09678079,98998.0,98997.0,0.0002181]
[1737966824954,2.09178079,98998.0,98997.0,0.0002181]
[1737966825166,2.14069136,98998.0,98997.0,0.0002181]
[1737966825363,2.14269136,98998.0,98997.0,0.0002181]
[1737966825566,2.14769136,98998.0,98997.0,0.0002181]
[1737966825790,2.1576606,98998.0,98997.0,0.0002181]
[1737966826467,2.25500789,98998.0,98997.0,0.0002181]
[1737966826665,2.1576606,98998.0,98997.0,0.0002181]
[1737966828597,2.17814602,98998.0,98997.0,0.0002181]
[1737966830438,2.17114602,98998.0,98997.0,0.0002181]
[1737966830850,2.17314602,98998.0,98997.0,0.0002181]
[1737966831046,2.17114602,98998.0,98997.0,0.0002181]
[1737966831479,2.17614602,98998.0,98997.0,0.0002181]
[1737966831675,2.17214602,98998.0,98997.0,0.0003598]
[1737966831878,2.17114602,98998.0,98997.0,0.0003598]
[1737966832078,2.17614602,98998.0,98997.0,0.0003598]
[1737966832281,2.17114602,98998.0,98997.0,0.0003598]
[1737966832477,2.17314602,98998.0,98997.0,0.0003598]
[1737966833382,2.24054437,98998.0,98997.0,0.0003598]
[1737966833511,2.17314602,98998.0,98997.0,0.0003598]
[1737966833717,2.17614602,98998.0,98997.0,0.0003598]
[1737966833921,2.17114602,98998.0,98997.0,0.0003598]
[1737966834143,2.17314602,98998.0,98997.0,0.0003598]
[1737966834475,2.17814602,98998.0,98997.0,0.0003598]
[1737966835244,2.27549331,98998.0,98997.0,0.0003598]
[1737966836066,2.17814602,98998.0,98997.0,0.0003598]
[1737966837077,2.02814602,98998.0,98997.0,0.0003598]
[1737966838119,2.02114602,98998.0,98997.0,0.0003598]